[Event "Early-Titled-Tuesday-Blitz-January-23-2024"]
[Site "Chess.com"]
[Date "2024.01.23"]
[Round "5"]
[White "Boxerandchessplayer"]
[Black "noblerone"]
[Result "1/2-1/2"]
[WhiteElo "2264"]
[BlackElo "2523"]
[TimeControl "180+1"]
[EndTime "8:55:50 PST"]
[Termination "Game drawn by repetition"]

1. d4 {[%clk 0:03:00.9]} 1... d5 {[%clk 0:02:55.8]} 2. c4 {[%clk 0:03:00.7]}
2... e6 {[%clk 0:02:54.1]} 3. Nf3 {[%clk 0:03:00.2]} 3... Nf6 {[%clk 0:02:53.3]}
4. Nc3 {[%clk 0:02:59.3]} 4... dxc4 {[%clk 0:02:49.6]} 5. Be3 {[%clk 0:02:58.5]}
5... c5 {[%clk 0:02:46.7]} 6. dxc5 {[%clk 0:02:55.2]} 6... Qa5 {[%clk
0:02:45.1]} 7. Qa4+ {[%clk 0:02:48.8]} 7... Nc6 {[%clk 0:02:35]} 8. Qxa5 {[%clk
0:02:39.9]} 8... Nxa5 {[%clk 0:02:35.9]} 9. Ne5 {[%clk 0:02:21.7]} 9... Nd7
{[%clk 0:02:31.3]} 10. Nxd7 {[%clk 0:02:15.9]} 10... Bxd7 {[%clk 0:02:22.8]} 11.
Bd4 {[%clk 0:02:01.7]} 11... Rc8 {[%clk 0:02:20.6]} 12. Ne4 {[%clk 0:01:13.1]}
12... f6 {[%clk 0:01:48.9]} 13. Bc3 {[%clk 0:00:55.1]} 13... Nc6 {[%clk
0:01:45.9]} 14. e3 {[%clk 0:00:50.3]} 14... Ne5 {[%clk 0:01:20.9]} 15. Bxe5
{[%clk 0:00:37.6]} 15... fxe5 {[%clk 0:01:21.8]} 16. Bxc4 {[%clk 0:00:32.5]}
16... Bxc5 {[%clk 0:01:21]} 17. Nxc5 {[%clk 0:00:32.2]} 17... Rxc5 {[%clk
0:01:20.8]} 18. Bd3 {[%clk 0:00:19.6]} 18... Ke7 {[%clk 0:01:06.7]} 19. O-O
{[%clk 0:00:19.1]} 19... h6 {[%clk 0:01:03.6]} 20. Rac1 {[%clk 0:00:18.6]} 20...
Rhc8 {[%clk 0:01:02.8]} 21. Rxc5 {[%clk 0:00:18.3]} 21... Rxc5 {[%clk
0:01:03.7]} 22. Rd1 {[%clk 0:00:18.3]} 22... a5 {[%clk 0:01:02.5]} 23. Kf1
{[%clk 0:00:18.1]} 23... Bc6 {[%clk 0:01:00]} 24. f3 {[%clk 0:00:17.5]} 24... g5
{[%clk 0:00:55.9]} 25. Ke1 {[%clk 0:00:12.1]} 25... g4 {[%clk 0:00:54.6]} 26.
Kf2 {[%clk 0:00:10.8]} 26... h5 {[%clk 0:00:44.9]} 27. Rd2 {[%clk 0:00:10.4]}
27... Rc1 {[%clk 0:00:43.6]} 28. Be2 {[%clk 0:00:07.5]} 28... gxf3 {[%clk
0:00:42]} 29. Bxf3 {[%clk 0:00:06.8]} 29... h4 {[%clk 0:00:39.3]} 30. Bxc6
{[%clk 0:00:06.4]} 30... bxc6 {[%clk 0:00:40.2]} 31. Kf3 {[%clk 0:00:06.4]}
31... Rc4 {[%clk 0:00:34.4]} 32. b3 {[%clk 0:00:05.4]} 32... Rb4 {[%clk
0:00:29.9]} 33. Rc2 {[%clk 0:00:04.9]} 33... Kd6 {[%clk 0:00:29.3]} 34. g3
{[%clk 0:00:04.9]} 34... hxg3 {[%clk 0:00:28.5]} 35. hxg3 {[%clk 0:00:05.8]}
35... a4 {[%clk 0:00:29.4]} 36. bxa4 {[%clk 0:00:05.3]} 36... Rxa4 {[%clk
0:00:30.3]} 37. g4 {[%clk 0:00:05.9]} 37... c5 {[%clk 0:00:24]} 38. g5 {[%clk
0:00:06]} 38... c4 {[%clk 0:00:23.3]} 39. g6 {[%clk 0:00:05.7]} 39... Ra7 {[%clk
0:00:20.6]} 40. Rxc4 {[%clk 0:00:05.2]} 40... Rg7 {[%clk 0:00:20.4]} 41. Rg4
{[%clk 0:00:05.1]} 41... Ke7 {[%clk 0:00:20]} 42. Ke4 {[%clk 0:00:05.3]} 42...
Kf6 {[%clk 0:00:20.9]} 43. a4 {[%clk 0:00:05.6]} 43... Ra7 {[%clk 0:00:20.3]}
44. Kf3 {[%clk 0:00:04]} 44... e4+ {[%clk 0:00:18.6]} 45. Kxe4 {[%clk
0:00:03.5]} 45... Rxa4+ {[%clk 0:00:16]} 46. Kf3 {[%clk 0:00:04.4]} 46... Rxg4
{[%clk 0:00:15.8]} 47. Kxg4 {[%clk 0:00:05.3]} 47... Kxg6 {[%clk 0:00:16.5]} 48.
Kf4 {[%clk 0:00:05.3]} 48... Kf6 {[%clk 0:00:16.6]} 49. e4 {[%clk 0:00:05.5]}
49... e5+ {[%clk 0:00:15.6]} 50. Kg4 {[%clk 0:00:06]} 50... Kg6 {[%clk
0:00:16.2]} 51. Kh4 {[%clk 0:00:06.5]} 51... Kh6 {[%clk 0:00:16.9]} 52. Kg4
{[%clk 0:00:07.1]} 52... Kg6 {[%clk 0:00:17.6]} 53. Kh4 {[%clk 0:00:07.7]} 53...
Kh6 {[%clk 0:00:18.2]} 54. Kg4 {[%clk 0:00:08.3]} 54... Kg6 {[%clk 0:00:18.9]}
1/2-1/2

[Event "Early-Titled-Tuesday-Blitz-January-23-2024"]
[Site "Chess.com"]
[Date "2024.01.23"]
[Round "5"]
[White "tsaruk_maks"]
[Black "suspiciumchess"]
[Result "0-1"]
[WhiteElo "2752"]
[BlackElo "2415"]
[TimeControl "180+1"]
[EndTime "8:55:51 PST"]
[Termination "suspiciumchess won on time"]

1. e4 {[%clk 0:03:00.9]} 1... c5 {[%clk 0:02:59.4]} 2. Nf3 {[%clk 0:03:01.2]}
2... d6 {[%clk 0:03:00.2]} 3. Bb5+ {[%clk 0:03:00.4]} 3... Nd7 {[%clk
0:03:00.1]} 4. O-O {[%clk 0:03:00]} 4... a6 {[%clk 0:02:59.7]} 5. Bd3 {[%clk
0:02:59.8]} 5... Ngf6 {[%clk 0:02:57]} 6. c3 {[%clk 0:02:59.1]} 6... b5 {[%clk
0:02:57]} 7. Bc2 {[%clk 0:02:56.5]} 7... Bb7 {[%clk 0:02:57]} 8. a4 {[%clk
0:02:57.1]} 8... Nxe4 {[%clk 0:02:51.5]} 9. Re1 {[%clk 0:02:55.8]} 9... Nef6
{[%clk 0:02:51.7]} 10. d4 {[%clk 0:02:56.3]} 10... e6 {[%clk 0:02:47.6]} 11. Bf4
{[%clk 0:02:48.4]} 11... Be7 {[%clk 0:02:47]} 12. Nbd2 {[%clk 0:02:48.4]} 12...
O-O {[%clk 0:02:47]} 13. h3 {[%clk 0:02:38.4]} 13... cxd4 {[%clk 0:02:46.3]} 14.
Nxd4 {[%clk 0:02:36.8]} 14... Nd5 {[%clk 0:02:26.1]} 15. Bh2 {[%clk 0:02:17.9]}
15... bxa4 {[%clk 0:02:12.3]} 16. Rxa4 {[%clk 0:02:15.5]} 16... Nc5 {[%clk
0:01:54.7]} 17. Ra1 {[%clk 0:02:14.1]} 17... g6 {[%clk 0:01:53.6]} 18. Nc4
{[%clk 0:02:13.4]} 18... Rc8 {[%clk 0:01:45.6]} 19. Qe2 {[%clk 0:01:56.7]} 19...
e5 {[%clk 0:01:34.1]} 20. Nf3 {[%clk 0:01:54.2]} 20... Ne6 {[%clk 0:01:30.9]}
21. Na5 {[%clk 0:01:53.7]} 21... Ba8 {[%clk 0:01:26]} 22. Qxa6 {[%clk
0:01:52.3]} 22... Nb4 {[%clk 0:01:17.7]} 23. cxb4 {[%clk 0:01:44.8]} 23... Rxc2
{[%clk 0:01:17.5]} 24. Ra3 {[%clk 0:01:23.2]} 24... Bh4 {[%clk 0:01:08.8]} 25.
Re2 {[%clk 0:01:12.7]} 25... Rc1+ {[%clk 0:01:04.4]} 26. Re1 {[%clk 0:01:11.4]}
26... Bxf3 {[%clk 0:00:57.8]} 27. Rxc1 {[%clk 0:01:10.7]} 27... Qg5 {[%clk
0:00:58.3]} 28. Rxf3 {[%clk 0:01:08.5]} 28... Qxc1+ {[%clk 0:00:58.2]} 29. Qf1
{[%clk 0:01:09.4]} 29... Qxb2 {[%clk 0:00:55.2]} 30. Rb3 {[%clk 0:01:03.4]}
30... Qd4 {[%clk 0:00:53.5]} 31. b5 {[%clk 0:00:59.1]} 31... Rc8 {[%clk
0:00:48.2]} 32. Nc6 {[%clk 0:00:58.8]} 32... Qd5 {[%clk 0:00:37.4]} 33. Rb4
{[%clk 0:00:50]} 33... Bf6 {[%clk 0:00:28.4]} 34. Bg3 {[%clk 0:00:42.8]} 34...
Qc5 {[%clk 0:00:20.5]} 35. Kh1 {[%clk 0:00:37.4]} 35... Rxc6 {[%clk 0:00:19.2]}
36. Rb1 {[%clk 0:00:26.9]} 36... Rb6 {[%clk 0:00:17.4]} 37. f4 {[%clk
0:00:24.9]} 37... exf4 {[%clk 0:00:14.2]} 38. Bxf4 {[%clk 0:00:25]} 38... Nxf4
{[%clk 0:00:12]} 39. Qxf4 {[%clk 0:00:24.5]} 39... Be5 {[%clk 0:00:12.3]} 40.
Qa4 {[%clk 0:00:24]} 40... Qd4 {[%clk 0:00:09.5]} 41. Qa8+ {[%clk 0:00:14.3]}
41... Kg7 {[%clk 0:00:10]} 42. Rf1 {[%clk 0:00:15.1]} 42... Qd3 {[%clk
0:00:08.9]} 43. Rg1 {[%clk 0:00:01.8]} 43... Qg3 {[%clk 0:00:05.5]} 0-1

[Event "Early-Titled-Tuesday-Blitz-January-23-2024"]
[Site "Chess.com"]
[Date "2024.01.23"]
[Round "5"]
[White "bazar-wokzal"]
[Black "ural58"]
[Result "1/2-1/2"]
[WhiteElo "2559"]
[BlackElo "2440"]
[TimeControl "180+1"]
[EndTime "8:55:51 PST"]
[Termination "Game drawn by repetition"]

1. e4 {[%clk 0:03:00.9]} 1... d5 {[%clk 0:02:58.1]} 2. exd5 {[%clk 0:03:00.7]}
2... Qxd5 {[%clk 0:02:58.2]} 3. Nc3 {[%clk 0:03:00.5]} 3... Qd6 {[%clk
0:02:58.3]} 4. Nf3 {[%clk 0:02:59.3]} 4... c6 {[%clk 0:02:57.3]} 5. d4 {[%clk
0:02:59.1]} 5... Bf5 {[%clk 0:02:55.3]} 6. g3 {[%clk 0:02:59.5]} 6... e6 {[%clk
0:02:54.9]} 7. Bg2 {[%clk 0:02:59.4]} 7... Nf6 {[%clk 0:02:54.2]} 8. O-O {[%clk
0:02:59.8]} 8... Be7 {[%clk 0:02:53.9]} 9. Bf4 {[%clk 0:02:59.1]} 9... Qd8
{[%clk 0:02:54]} 10. Qe2 {[%clk 0:02:57.8]} 10... O-O {[%clk 0:02:54]} 11. Nd1
{[%clk 0:02:49.4]} 11... Nd5 {[%clk 0:02:46.2]} 12. Bd2 {[%clk 0:02:48.3]} 12...
b5 {[%clk 0:02:45.5]} 13. Rc1 {[%clk 0:02:36.7]} 13... Nd7 {[%clk 0:02:44.6]}
14. Ne3 {[%clk 0:02:26.8]} 14... Bg6 {[%clk 0:02:40]} 15. b3 {[%clk 0:02:19.7]}
15... a6 {[%clk 0:02:39.4]} 16. c4 {[%clk 0:02:18.3]} 16... bxc4 {[%clk
0:02:38.9]} 17. bxc4 {[%clk 0:02:18.5]} 17... Nb4 {[%clk 0:02:36.4]} 18. Bxb4
{[%clk 0:02:13.8]} 18... Bxb4 {[%clk 0:02:35.5]} 19. c5 {[%clk 0:02:13.9]} 19...
Nf6 {[%clk 0:02:14.5]} 20. Ne5 {[%clk 0:02:07.2]} 20... Ba3 {[%clk 0:01:50.9]}
21. Nxc6 {[%clk 0:01:55.7]} 21... Qc7 {[%clk 0:01:43.1]} 22. Rc3 {[%clk
0:01:54.5]} 22... Be4 {[%clk 0:01:38.8]} 23. Ne5 {[%clk 0:01:06.1]} 23... Bxg2
{[%clk 0:01:24.6]} 24. Kxg2 {[%clk 0:01:02.8]} 24... Bb4 {[%clk 0:01:24.7]} 25.
Rb3 {[%clk 0:00:57.8]} 25... Ba5 {[%clk 0:01:18.1]} 26. Rfb1 {[%clk 0:00:50.4]}
26... Qc8 {[%clk 0:01:12.7]} 27. Qf3 {[%clk 0:00:46.6]} 27... Bc7 {[%clk
0:01:10.7]} 28. Nc6 {[%clk 0:00:46.1]} 28... Kh8 {[%clk 0:01:09.5]} 29. Nc4
{[%clk 0:00:42.5]} 29... Nd5 {[%clk 0:00:57.1]} 30. Ne3 {[%clk 0:00:41.1]} 30...
Nf6 {[%clk 0:00:55.2]} 31. Rb7 {[%clk 0:00:39.3]} 31... Bd8 {[%clk 0:00:36.5]}
32. Nc4 {[%clk 0:00:31.5]} 32... Bc7 {[%clk 0:00:25.9]} 33. N4e5 {[%clk
0:00:23.2]} 33... Bxe5 {[%clk 0:00:25.7]} 34. Nxe5 {[%clk 0:00:21.2]} 34... Kg8
{[%clk 0:00:24.5]} 35. Qc6 {[%clk 0:00:20.6]} 35... Qd8 {[%clk 0:00:18.4]} 36.
Qd6 {[%clk 0:00:21]} 36... Qa5 {[%clk 0:00:17.8]} 37. Nd7 {[%clk 0:00:19.3]}
37... Nxd7 {[%clk 0:00:17]} 38. Rxd7 {[%clk 0:00:18.7]} 38... Qxa2 {[%clk
0:00:17.6]} 39. Rbb7 {[%clk 0:00:18.1]} 39... Qc2 {[%clk 0:00:15.7]} 40. Qe5
{[%clk 0:00:16.9]} 40... a5 {[%clk 0:00:15]} 41. Ra7 {[%clk 0:00:16.2]} 41... a4
{[%clk 0:00:13.5]} 42. h4 {[%clk 0:00:14.9]} 42... a3 {[%clk 0:00:13.4]} 43. h5
{[%clk 0:00:15]} 43... h6 {[%clk 0:00:12.9]} 44. Rxf7 {[%clk 0:00:13]} 44...
Rxf7 {[%clk 0:00:08.9]} 45. Rxa8+ {[%clk 0:00:13.1]} 45... Kh7 {[%clk
0:00:09.5]} 46. Qb8 {[%clk 0:00:11.5]} 46... Qe4+ {[%clk 0:00:08.1]} 47. Kh3
{[%clk 0:00:10.7]} 47... Qh1+ {[%clk 0:00:06.5]} 48. Kg4 {[%clk 0:00:10.6]}
48... Qf3+ {[%clk 0:00:06.5]} 49. Kh4 {[%clk 0:00:09.4]} 49... Qh1+ {[%clk
0:00:04.9]} 50. Kg4 {[%clk 0:00:09.6]} 50... Qf3+ {[%clk 0:00:04.4]} 51. Kh4
{[%clk 0:00:09.3]} 51... Qh1+ {[%clk 0:00:04.5]} 52. Kg4 {[%clk 0:00:09.5]}
1/2-1/2

[Event "Early-Titled-Tuesday-Blitz-January-23-2024"]
[Site "Chess.com"]
[Date "2024.01.23"]
[Round "5"]
[White "kai_nov"]
[Black "tusplingher"]
[Result "1/2-1/2"]
[WhiteElo "2299"]
[BlackElo "2484"]
[TimeControl "180+1"]
[EndTime "8:55:52 PST"]
[Termination "Game drawn by repetition"]

1. d4 {[%clk 0:03:00.9]} 1... Nf6 {[%clk 0:02:59.8]} 2. Nc3 {[%clk 0:02:54.2]}
2... d5 {[%clk 0:02:57.8]} 3. Bg5 {[%clk 0:02:52.5]} 3... e6 {[%clk 0:02:52.3]}
4. e4 {[%clk 0:02:47.6]} 4... dxe4 {[%clk 0:02:52.4]} 5. Nxe4 {[%clk 0:02:46.5]}
5... Be7 {[%clk 0:02:52.2]} 6. Bxf6 {[%clk 0:02:45.7]} 6... Bxf6 {[%clk
0:02:52.4]} 7. Nf3 {[%clk 0:02:43.4]} 7... b6 {[%clk 0:02:47.6]} 8. c3 {[%clk
0:02:40]} 8... Bb7 {[%clk 0:02:44]} 9. Bd3 {[%clk 0:02:37.8]} 9... Nd7 {[%clk
0:02:43.3]} 10. Qe2 {[%clk 0:02:28.7]} 10... Be7 {[%clk 0:02:35.7]} 11. O-O-O
{[%clk 0:02:25.3]} 11... Nf6 {[%clk 0:02:31.9]} 12. Nxf6+ {[%clk 0:02:09.6]}
12... Bxf6 {[%clk 0:02:30.9]} 13. Ne5 {[%clk 0:02:04.6]} 13... O-O {[%clk
0:01:35.8]} 14. Rhg1 {[%clk 0:01:58.3]} 14... g6 {[%clk 0:01:05.4]} 15. g4
{[%clk 0:01:53.5]} 15... c5 {[%clk 0:01:03.3]} 16. dxc5 {[%clk 0:01:33.3]} 16...
Qc7 {[%clk 0:00:59.1]} 17. f4 {[%clk 0:01:08.5]} 17... Rfd8 {[%clk 0:00:43.2]}
18. c6 {[%clk 0:00:58.2]} 18... Bxe5 {[%clk 0:00:30.2]} 19. fxe5 {[%clk
0:00:44.6]} 19... Bxc6 {[%clk 0:00:19.3]} 20. h4 {[%clk 0:00:36.6]} 20... Rd7
{[%clk 0:00:18.3]} 21. h5 {[%clk 0:00:36.1]} 21... Rad8 {[%clk 0:00:17.3]} 22.
hxg6 {[%clk 0:00:35.4]} 22... fxg6 {[%clk 0:00:15.1]} 23. Bc4 {[%clk 0:00:30.6]}
23... Bd5 {[%clk 0:00:14.4]} 24. Bxd5 {[%clk 0:00:29]} 24... Rxd5 {[%clk
0:00:14.5]} 25. Rxd5 {[%clk 0:00:29.1]} 25... Rxd5 {[%clk 0:00:14.8]} 26. Re1
{[%clk 0:00:28.3]} 26... Qc5 {[%clk 0:00:12.7]} 27. Qe4 {[%clk 0:00:21.8]} 27...
b5 {[%clk 0:00:12.5]} 28. Rf1 {[%clk 0:00:18.9]} 28... Rxe5 {[%clk 0:00:08.4]}
29. Qa8+ {[%clk 0:00:18.9]} 29... Kg7 {[%clk 0:00:08.3]} 30. Qb7+ {[%clk
0:00:18]} 30... Kh6 {[%clk 0:00:08.2]} 31. Qf7 {[%clk 0:00:17.8]} 31... Qe3+
{[%clk 0:00:07.5]} 32. Kc2 {[%clk 0:00:17.2]} 32... Qe2+ {[%clk 0:00:06.4]} 33.
Kb3 {[%clk 0:00:17.3]} 33... Qc4+ {[%clk 0:00:06.3]} 34. Kc2 {[%clk 0:00:16.9]}
34... Re2+ {[%clk 0:00:06.6]} 35. Kc1 {[%clk 0:00:17.1]} 35... Qe4 {[%clk
0:00:02.2]} 36. g5+ {[%clk 0:00:13.1]} 36... Kxg5 {[%clk 0:00:02]} 37. Qf6+
{[%clk 0:00:11.2]} 37... Kg4 {[%clk 0:00:02.3]} 38. Rg1+ {[%clk 0:00:10.7]}
38... Rg2 {[%clk 0:00:02]} 39. Rxg2+ {[%clk 0:00:10.1]} 39... Qxg2 {[%clk
0:00:02.4]} 40. Qxe6+ {[%clk 0:00:10.6]} 40... Kg3 {[%clk 0:00:03.1]} 41. Qe5+
{[%clk 0:00:10.9]} 41... Kh3 {[%clk 0:00:03.2]} 42. Qe6+ {[%clk 0:00:10.8]}
42... Qg4 {[%clk 0:00:03.5]} 43. Qe3+ {[%clk 0:00:10.7]} 43... Qg3 {[%clk
0:00:03.8]} 44. Qe6+ {[%clk 0:00:10.9]} 44... Kh2 {[%clk 0:00:04.4]} 45. Qe2+
{[%clk 0:00:10.9]} 45... Qg2 {[%clk 0:00:04.8]} 46. Qe5+ {[%clk 0:00:11]} 46...
Kg1 {[%clk 0:00:05.2]} 47. Qc5+ {[%clk 0:00:10.3]} 47... Qf2 {[%clk 0:00:05.2]}
48. Qg5+ {[%clk 0:00:10.1]} 48... Kf1 {[%clk 0:00:05.6]} 49. Qxb5+ {[%clk
0:00:09.5]} 49... Ke1 {[%clk 0:00:04.5]} 50. Qe5+ {[%clk 0:00:09.2]} 50... Kf1
{[%clk 0:00:04.5]} 51. Qb5+ {[%clk 0:00:09.2]} 51... Kg2 {[%clk 0:00:04.5]} 52.
Qg5+ {[%clk 0:00:08.9]} 52... Kf1 {[%clk 0:00:05.1]} 53. Qb5+ {[%clk 0:00:08.7]}
1/2-1/2

[Event "Early-Titled-Tuesday-Blitz-January-23-2024"]
[Site "Chess.com"]
[Date "2024.01.23"]
[Round "5"]
[White "Crazy_girl99"]
[Black "andrzej"]
[Result "1-0"]
[WhiteElo "2611"]
[BlackElo "2381"]
[TimeControl "180+1"]
[EndTime "8:55:54 PST"]
[Termination "Crazy_girl99 won by checkmate"]

1. e4 {[%clk 0:02:51.9]} 1... e5 {[%clk 0:03:00.5]} 2. Nf3 {[%clk 0:02:51.6]}
2... Nf6 {[%clk 0:03:01.2]} 3. Nc3 {[%clk 0:02:51.6]} 3... Bb4 {[%clk 0:03:01]}
4. Bc4 {[%clk 0:02:51.2]} 4... Bxc3 {[%clk 0:03:00.5]} 5. dxc3 {[%clk
0:02:51.4]} 5... d6 {[%clk 0:03:00.8]} 6. Bg5 {[%clk 0:02:50.4]} 6... h6 {[%clk
0:02:59.7]} 7. Bh4 {[%clk 0:02:50.6]} 7... O-O {[%clk 0:02:55.7]} 8. Qe2 {[%clk
0:02:49.6]} 8... Be6 {[%clk 0:02:42.8]} 9. Bxe6 {[%clk 0:02:40.6]} 9... fxe6
{[%clk 0:02:42.7]} 10. O-O-O {[%clk 0:02:41.3]} 10... Qe7 {[%clk 0:02:35.5]} 11.
h3 {[%clk 0:02:37.2]} 11... Qf7 {[%clk 0:02:31.9]} 12. Rhe1 {[%clk 0:02:25.9]}
12... Nh5 {[%clk 0:02:28.1]} 13. Qb5 {[%clk 0:02:19.2]} 13... b6 {[%clk
0:02:21.9]} 14. Kb1 {[%clk 0:02:18.7]} 14... a6 {[%clk 0:02:21.5]} 15. Qc4
{[%clk 0:02:17.1]} 15... b5 {[%clk 0:02:18.1]} 16. Qf1 {[%clk 0:02:11.9]} 16...
Nd7 {[%clk 0:02:18.1]} 17. Nd2 {[%clk 0:02:01.1]} 17... Rab8 {[%clk 0:02:14.6]}
18. g4 {[%clk 0:01:58]} 18... Nf4 {[%clk 0:02:13.7]} 19. Bg3 {[%clk 0:01:51]}
19... a5 {[%clk 0:02:07.2]} 20. h4 {[%clk 0:01:50.4]} 20... b4 {[%clk
0:02:05.9]} 21. c4 {[%clk 0:01:39.5]} 21... Nc5 {[%clk 0:02:05.6]} 22. Nb3
{[%clk 0:01:34.2]} 22... Na4 {[%clk 0:01:46.3]} 23. c5 {[%clk 0:01:17.7]} 23...
Nxc5 {[%clk 0:01:25]} 24. Nxc5 {[%clk 0:01:15.4]} 24... dxc5 {[%clk 0:01:25.9]}
25. Qc4 {[%clk 0:01:15.8]} 25... Qe7 {[%clk 0:01:24.7]} 26. g5 {[%clk
0:01:09.1]} 26... h5 {[%clk 0:01:21.1]} 27. f3 {[%clk 0:01:03.3]} 27... Kh7
{[%clk 0:01:15.4]} 28. Bf2 {[%clk 0:01:02.6]} 28... Rfd8 {[%clk 0:01:11.5]} 29.
Bxc5 {[%clk 0:01:00.6]} 29... Qe8 {[%clk 0:01:11.6]} 30. Be3 {[%clk 0:00:52.7]}
30... Ng6 {[%clk 0:01:08.8]} 31. Qxc7 {[%clk 0:00:44.8]} 31... Rbc8 {[%clk
0:01:04.6]} 32. Qxa5 {[%clk 0:00:42]} 32... Rxd1+ {[%clk 0:01:02.2]} 33. Rxd1
{[%clk 0:00:42.9]} 33... Qc6 {[%clk 0:01:02.8]} 34. Rc1 {[%clk 0:00:42]} 34...
Qc4 {[%clk 0:01:02.6]} 35. Bd2 {[%clk 0:00:36.6]} 35... Qe2 {[%clk 0:00:58.3]}
36. Qxb4 {[%clk 0:00:31.1]} 36... Qxf3 {[%clk 0:00:57.9]} 37. a4 {[%clk
0:00:30.8]} 37... Rd8 {[%clk 0:00:32.4]} 38. Bc3 {[%clk 0:00:28.5]} 38... Nf4
{[%clk 0:00:23.4]} 39. Bxe5 {[%clk 0:00:23.6]} 39... Ne2 {[%clk 0:00:19.3]} 40.
Qe7 {[%clk 0:00:16.2]} 40... Rg8 {[%clk 0:00:11.5]} 41. Re1 {[%clk 0:00:15]}
41... Qxe4 {[%clk 0:00:10.8]} 42. Qxe6 {[%clk 0:00:12.7]} 42... Qg2 {[%clk
0:00:02.8]} 43. g6+ {[%clk 0:00:12]} 43... Kh8 {[%clk 0:00:03.1]} 44. Rxe2
{[%clk 0:00:08.9]} 44... Qh1+ {[%clk 0:00:01.7]} 45. Ka2 {[%clk 0:00:09]} 45...
Qxh4 {[%clk 0:00:02.1]} 46. b3 {[%clk 0:00:07.9]} 46... Qb4 {[%clk 0:00:01.8]}
47. Bb2 {[%clk 0:00:08]} 47... Qb7 {[%clk 0:00:01.9]} 48. Qf5 {[%clk 0:00:07.1]}
48... Qc7 {[%clk 0:00:01.2]} 49. Qxh5# {[%clk 0:00:07.1]} 1-0

[Event "Early-Titled-Tuesday-Blitz-January-23-2024"]
[Site "Chess.com"]
[Date "2024.01.23"]
[Round "5"]
[White "MikaelyanArman"]
[Black "biostatistician"]
[Result "1/2-1/2"]
[WhiteElo "2833"]
[BlackElo "2601"]
[TimeControl "180+1"]
[EndTime "8:55:58 PST"]
[Termination "Game drawn - insufficient material"]

1. d4 {[%clk 0:03:00.9]} 1... Nf6 {[%clk 0:02:59.8]} 2. Nf3 {[%clk 0:03:00.7]}
2... g6 {[%clk 0:02:59.6]} 3. g3 {[%clk 0:02:58.8]} 3... b6 {[%clk 0:02:59.1]}
4. Bg2 {[%clk 0:02:59]} 4... Bb7 {[%clk 0:02:59.6]} 5. c4 {[%clk 0:02:58.4]}
5... Bg7 {[%clk 0:03:00]} 6. O-O {[%clk 0:02:58.1]} 6... O-O {[%clk 0:03:00.5]}
7. d5 {[%clk 0:02:50.8]} 7... Na6 {[%clk 0:02:59.9]} 8. Nc3 {[%clk 0:02:50.3]}
8... Nc5 {[%clk 0:02:59.8]} 9. Be3 {[%clk 0:02:48.9]} 9... e6 {[%clk 0:02:50.4]}
10. Rc1 {[%clk 0:02:40.1]} 10... exd5 {[%clk 0:02:47.3]} 11. cxd5 {[%clk
0:02:41]} 11... Re8 {[%clk 0:02:47.7]} 12. Bd4 {[%clk 0:02:39.3]} 12... d6
{[%clk 0:02:42.5]} 13. b4 {[%clk 0:02:38]} 13... Nce4 {[%clk 0:02:42.2]} 14.
Nxe4 {[%clk 0:02:17.9]} 14... Nxe4 {[%clk 0:02:43.1]} 15. Bxg7 {[%clk
0:02:11.7]} 15... Kxg7 {[%clk 0:02:44]} 16. Nd4 {[%clk 0:02:04.7]} 16... Bxd5
{[%clk 0:02:23.4]} 17. Nf5+ {[%clk 0:02:04.4]} 17... gxf5 {[%clk 0:02:23.2]} 18.
Qxd5 {[%clk 0:02:05]} 18... Qd7 {[%clk 0:02:20.3]} 19. Rfd1 {[%clk 0:01:52.1]}
19... Rad8 {[%clk 0:02:15]} 20. Bh3 {[%clk 0:01:49.6]} 20... Re5 {[%clk
0:01:44.5]} 21. Qxe5+ {[%clk 0:01:38.2]} 21... dxe5 {[%clk 0:01:41.4]} 22. Rxd7
{[%clk 0:01:39.1]} 22... Rxd7 {[%clk 0:01:42]} 23. Bxf5 {[%clk 0:01:39.5]} 23...
Rd4 {[%clk 0:01:42.2]} 24. Rxc7 {[%clk 0:01:32.2]} 24... Rxb4 {[%clk 0:01:42.4]}
25. Rxa7 {[%clk 0:01:27.3]} 25... Nd6 {[%clk 0:01:37.5]} 26. Be6 {[%clk
0:01:11.8]} 26... Kg6 {[%clk 0:01:30.3]} 27. Bb3 {[%clk 0:01:10.7]} 27... f5
{[%clk 0:01:30.6]} 28. Rd7 {[%clk 0:01:06.8]} 28... Nb5 {[%clk 0:01:29.4]} 29.
e3 {[%clk 0:01:06.5]} 29... h5 {[%clk 0:01:02.8]} 30. h4 {[%clk 0:01:05.9]}
30... Nc3 {[%clk 0:01:01.1]} 31. Kg2 {[%clk 0:01:02]} 31... Ne4 {[%clk
0:00:59.1]} 32. Re7 {[%clk 0:00:53.9]} 32... Nc5 {[%clk 0:00:55.7]} 33. Rxe5
{[%clk 0:00:37]} 33... Nxb3 {[%clk 0:00:55.2]} 34. axb3 {[%clk 0:00:37.9]} 34...
Rxb3 {[%clk 0:00:56.1]} 35. Re6+ {[%clk 0:00:37.5]} 35... Kg7 {[%clk 0:00:56.4]}
36. Kf3 {[%clk 0:00:36.1]} 36... Rb2 {[%clk 0:00:56.7]} 37. Rc6 {[%clk
0:00:32.3]} 37... b5 {[%clk 0:00:56.7]} 38. Rc5 {[%clk 0:00:16.3]} 38... Kg6
{[%clk 0:00:56.2]} 39. Rc6+ {[%clk 0:00:16.8]} 39... Kg7 {[%clk 0:00:56.2]} 40.
Rb6 {[%clk 0:00:12]} 40... b4 {[%clk 0:00:55.6]} 41. Rc6 {[%clk 0:00:11.7]}
41... b3 {[%clk 0:00:54.1]} 42. Rb6 {[%clk 0:00:11.9]} 42... Kf7 {[%clk
0:00:48.8]} 43. Kf4 {[%clk 0:00:12.2]} 43... Rxf2+ {[%clk 0:00:48.4]} 44. Kg5
{[%clk 0:00:12.8]} 44... b2 {[%clk 0:00:49]} 45. Kxh5 {[%clk 0:00:12.5]} 45...
Rf3 {[%clk 0:00:38.3]} 46. Rxb2 {[%clk 0:00:11.4]} 46... Rxg3 {[%clk 0:00:38.5]}
47. Rb3 {[%clk 0:00:10.6]} 47... Kf6 {[%clk 0:00:36.4]} 48. Rb6+ {[%clk
0:00:08.2]} 48... Ke5 {[%clk 0:00:36.2]} 49. Rb5+ {[%clk 0:00:08.2]} 49... Ke4
{[%clk 0:00:36]} 50. Kh6 {[%clk 0:00:04]} 50... Rxe3 {[%clk 0:00:20.9]} 51. h5
{[%clk 0:00:04.4]} 51... f4 {[%clk 0:00:20.5]} 52. Kg5 {[%clk 0:00:02.7]} 52...
Rg3+ {[%clk 0:00:20.5]} 53. Kf6 {[%clk 0:00:02.7]} 53... f3 {[%clk 0:00:20.4]}
54. Re5+ {[%clk 0:00:02.9]} 54... Kf4 {[%clk 0:00:20.3]} 55. Rf5+ {[%clk
0:00:03.3]} 55... Ke3 {[%clk 0:00:20.9]} 56. h6 {[%clk 0:00:02.8]} 56... Rh3
{[%clk 0:00:19.6]} 57. Kg7 {[%clk 0:00:02.5]} 57... f2 {[%clk 0:00:19.7]} 58.
Rxf2 {[%clk 0:00:02]} 58... Kxf2 {[%clk 0:00:19.8]} 59. h7 {[%clk 0:00:02.2]}
59... Kf3 {[%clk 0:00:20.3]} 60. h8=Q {[%clk 0:00:02.2]} 60... Rxh8 {[%clk
0:00:20.5]} 61. Kxh8 {[%clk 0:00:03.1]} 1/2-1/2